Cogmind - Beta 15 @@@ ROGUE MODE // 2025.08.01 @ 17:30:15 Player: DURANDAL Result: Destroyed by H-66 Slayer with Gauss Rifle Performance ------------- Evolutions (4) 2000 Regions Visited (7) 1400 Robots Destroyed (88) 440 Value Destroyed (3268) 3268 Prototype IDs (0) 0 Alien Tech Used (0) 0 Bonus (265) 265 TOTAL SCORE: 7373 Bonus ------- Follower Combat Kills 265 Cogmind --------- Core Integrity 0/850 Matter 182/550 Energy 100/100 System Corruption 5% Temperature Cool (30) Movement Core (500) Ox9 Location -6/Factory Parts ------- > --- POWER (2) -------- (None) > --- PROPULSION (4) --- (None) > --- UTILITY (6) ------ High-capacity Storage Unit High-capacity Storage Unit Matter Compressor Weight Redist. System Hacking Suite > --- WEAPON (3) ------- (None) > --- INVENTORY (20) --- Fusion Compressor Improved Heat Sink Terrain Scanner Peak State ------------ > --- POWER ------------ Micro Nuclear Core Micro Nuclear Core > --- PROPULSION ------- Light Treads Light Treads Armored Treads Improved Medium Treads > --- UTILITY ---------- High-capacity Storage Unit Matter Compressor Advanced Weight Redist. System Trap Scanner Improved Shield Generator Hacking Suite > --- WEAPON ----------- Gauss Rifle Gauss Rifle Gauss Rifle > --- INVENTORY -------- Improved Deuterium Engine Light Fission Core Light Antimatter Reactor Improved Heat Sink Advanced Heat Sink High-capacity Storage Unit Weight Redist. System Terrain Scanner Improved Core Shielding Improved Light Armor Plating Layered Light Armor Plating Light Assault Rifle Heavy Assault Rifle Shotgun Minigun Gauss Rifle Assault Cannon Flak Cannon Plasma Cutter [Rating: 55] Favorites ----------- Power Micro Nuclear Core Engine Ion Engine Power Core Micro Nuclear Core Reactor Light Antimatter Reactor Propulsion Light Treads Treads Light Treads Leg Improved Carbon-fiber Leg Utility High-capacity Storage Unit Device Trap Scanner Storage High-capacity Storage Unit Hackware Hacking Suite Protection Improved Light Armor Plating Weapon Gauss Rifle Energy Gun Gatling Laser Ballistic Gun Gauss Rifle Ballistic Cannon Flak Cannon Special Weapon Plasma Cutter Slashing Weapon Scythe Build | -11 -10 -10 -9 -9 -8 -7 -6 ------- Run | Yrd Mat Min Mat Sto Mat Fac Fac Slots Evolved 8 | . . . 2 . 2 2 2 Power 1 | . . . 1 . . . . Propulsion 2 | . . . . . 2 . . Utility 4 | . . . 1 . . 1 2 Weapon 1 | . . . . . . 1 . Parts Attached 74 | 6 2 . 6 6 15 8 31 Power 17 | 1 1 . 1 1 4 2 7 Engine 8 | 1 . . 1 1 3 . 2 Core 8 | . 1 . . . 1 2 4 Reactor 1 | . . . . . . . 1 Propulsion 17 | 2 . . 1 2 6 1 5 Treads 16 | 2 . . 1 2 6 . 5 Leg 1 | . . . . . . 1 . Wheel . | . . . . . . . . Hover . | . . . . . . . . Flight . | . . . . . . . . Utility 20 | 1 1 . 2 1 2 1 12 Device 11 | . . . 2 1 . . 8 Storage 5 | 1 1 . . . 1 . 2 Processor . | . . . . . . . . Hackware 1 | . . . . . 1 . . Protection 3 | . . . . . . 1 2 Artifact . | . . . . . . . . Weapon 20 | 2 . . 2 2 3 4 7 Energy Gun 1 | . . . . . . . 1 Energy Cannon . | . . . . . . . . Ballistic Gun 13 | 2 . . . 2 1 3 5 Ballistic Cannon 3 | . . . 2 . . 1 . Launcher . | . . . . . . . . Special Weapon 1 | . . . . . . . 1 Impact Weapon . | . . . . . . . . Slashing Weapon 2 | . . . . . 2 . . Piercing Weapon . | . . . . . . . . Special Melee Weapon . | . . . . . . . . Unidentified Prototypes . | . . . . . . . . Parts Lost 59 | . . . 3 4 13 . 39 Power 15 | . . . . 2 5 . 8 Propulsion 15 | . . . 1 1 5 . 8 Utility 12 | . . . . 1 2 . 9 Weapon 17 | . . . 2 . 1 . 14 Highest Loss Streak 12 | . . . 2 1 4 . 12 To Critical Strikes . | . . . . . . . . Average Backups 13 | 1 6 13 17 18 18 15 12 Power 1 | . 1 2 1 . 1 1 1 Propulsion 1 | . . 2 2 4 3 . . Utility 5 | . 4 7 7 6 5 6 5 Weapon 4 | . . 2 6 7 6 6 3 Tool/Special . | . . . . . . . . Unused Backups 9 | . . . 1 2 2 . 4 Power 1 | . . . . . . . 1 Propulsion 1 | . . . . . . . 1 Utility 3 | . . . . 1 . . 2 Weapon 4 | . . . 1 1 2 . . Tool/Special . | . . . . . . . . Average Slot Usage (%) 88 | . 98 100 95 95 89 94 77 Engine 4 | . 4 . 10 17 8 1 . Core 8 | . 9 14 11 . 4 13 10 Treads 20 | . 28 28 21 22 35 23 11 Device 10 | . . . 19 21 7 . 13 Storage 15 | . 26 28 13 11 13 15 12 Hackware 3 | . . . . . 3 7 6 Protection 2 | . . . . . . 7 4 Ballistic Gun 16 | . 28 28 14 16 9 15 14 Ballistic Cannon 2 | . . . 5 5 6 6 . Peak Build Rating 55 | 6 10 10 19 19 25 40 55 Average Rating 26 | 4 8 10 15 16 19 31 40 On Entrance 14 | . 6 10 10 19 16 18 40 Naked Turns . | . . . . . . . . Heaviest Build 109 | 13 53 53 68 68 66 68 109 Greatest Support 99 | 40 40 40 40 40 80 60 99 Greatest Overweight (x) 24 | 1 1 1 2 1 1 1 24 Average Overweight (x) 1 | . . 1 1 1 . . 2 Largest Inventory Capacity 20 | 8 20 20 20 20 20 20 20 Average Capacity 19 | 7 18 20 20 20 20 20 20 Most Carried 20 | 4 13 15 20 20 20 20 20 Average Carried 13 | 1 6 13 17 18 18 15 12 Final Capacity 20 | 8 20 20 20 20 20 20 20 Final Carried 20 | 1 13 15 18 20 14 20 3 Class Distribution -------------------- 54% | Mutant 17% | Tank 12% | Scavenger-Tank 9% | Scavenger-Mutant 4% | Commander-Mutant Dominant Class ---------------- Mutant | -10/Materials Mutant | -10/Mines Mutant | -9/Materials Mutant | -9/Storage Scavenger-Mutant | -8/Materials Scavenger-Tank | -7/Factory Mutant | -6/Factory Resources | -11 -10 -10 -9 -9 -8 -7 -6 ----------- Run | Yrd Mat Min Mat Sto Mat Fac Fac Matter Collected 3169 | 208 215 36 220 387 445 136 1522 Remotely . | . . . . . . . . Salvage Created 3471 | . 446 19 195 470 497 122 1722 Parts 184 | . 23 3 16 29 19 4 90 Haulers Intercepted 2 | . 1 . . 1 . . . Recyclers Shooed 12 | . 1 . 3 . 1 . 7 Parts Field Recycled . | . . . . . . . . Retrieved Matter . | . . . . . . . . Parts Self-Destructed . | . . . . . . . . Prevented . | . . . . . . . . Kills | -11 -10 -10 -9 -9 -8 -7 -6 ------- Run | Yrd Mat Min Mat Sto Mat Fac Fac Combat Hostiles Destroyed 69 | . 9 1 7 11 13 3 25 Melee 3 | . . . . . 3 . . Guns 47 | . 9 1 4 4 5 1 23 Cannons 19 | . . . 3 7 5 2 2 Classes Destroyed 14 | . 3 1 3 2 . 1 4 Worker 8 | . . . 2 1 1 . 4 Builder 1 | . . . . . . . 1 Hauler 2 | . 1 . . 1 . . . Recycler 4 | . . . 1 . . . 3 Mechanic 1 | . . . . 1 . . . Operator 1 | . . . . 1 . . . Watcher 2 | . 1 . . 1 . . . Swarmer 8 | . . 1 5 2 . . . Grunt 38 | . 9 . . 5 12 2 10 Sentry 11 | . . . 2 4 1 . 4 Specialist 2 | . . . . . . . 2 Hunter 2 | . . . . . . . 2 Programmer 7 | . . . . . . 1 6 Heavy 1 | . . . . . . . 1 Best Kill Streak 6 | . 2 1 6 4 3 2 5 Combat Bots Only 4 | . 2 1 3 4 3 2 4 Max Kills in Single Turn 2 | . 1 1 2 2 2 1 2 Gunslinging . | . . . . . . . . Exploded . | . . . . . . . . Melee 1 | . . . . . 1 . . Uniques/NPCs Destroyed . | . . . . . . . . Combat | -11 -10 -10 -9 -9 -8 -7 -6 -------- Run | Yrd Mat Min Mat Sto Mat Fac Fac Hostile Shots Fired 855 | . 58 9 45 47 128 11 557 Missed 225 | . 18 2 11 10 30 3 151 Hits 630 | . 40 7 34 37 98 8 406 Projectile 630 | . 40 7 34 37 98 8 406 AOE 1 | . . . . . . . 1 Critical Strikes 20 | . . . . 1 5 . 14 Actively Blocked 1 | . . . . . . . 1 Damage Taken 8209 | . 523 59 204 489 1506 117 5311 Core 1317 | . 73 30 27 110 179 28 870 Absorbed by Shields 1246 | . . . 148 140 88 . 870 Redirected to Shielding 64 | . . . . . . . 64 Core Remaining (%) 77 | 100 . 58 . 65 67 96 . Volleys Fired 313 | . 39 3 27 39 61 7 137 Largest 3 | . 2 2 2 2 2 3 3 Hottest 108 | . 40 40 74 74 74 85 108 Shots Fired 663 | . 78 6 42 78 118 18 323 Gun 514 | . 78 6 24 40 66 11 289 Cannon 145 | . . . 18 38 52 7 30 Launcher . | . . . . . . . . Special 4 | . . . . . . . 4 Kinetic 652 | . 78 6 42 78 118 18 312 Thermal 11 | . . . . . . . 11 Explosive . | . . . . . . . . Electromagnetic . | . . . . . . . . Robot Hit Streak 20 | . 8 2 12 13 7 10 20 Robot Miss Streak 9 | . 4 2 5 9 8 1 5 Penetration Max 1 | . . . . . . . 1 Secondary Targets 5 | . 1 . . 1 3 . . Max Gunslinging Chain 1 | . 1 . . 1 1 . . Shots Hit Robots 471 | . 50 3 26 59 95 15 223 Core Hits 260 | . 26 1 23 33 57 8 112 Critical Kills 3 | . . . . . . . 3 Critical Parts Destroyed 2 | . . . . . . . 2 Critical Strikes 8 | . . . . . 1 . 7 Destroy 5 | . . . . . . . 5 Blast 2 | . . . . . . . 2 Sever 1 | . . . . . 1 . . Melee Attacks 6 | . . . . . 6 . . Impact . | . . . . . . . . Slashing 6 | . . . . . 6 . . Piercing . | . . . . . . . . Sneak Attacks . | . . . . . . . . Combat Hostiles . | . . . . . . . . Follow-up Attacks . | . . . . . . . . Damage Inflicted 8077 | . 551 33 450 765 1545 310 4423 Guns 5706 | . 530 33 126 305 709 143 3860 Cannons 1941 | . . . 308 429 609 158 437 Explosions 73 | . . . . . . . 73 Melee 185 | . . . . . 185 . . Ramming 150 | . 21 . 16 31 42 9 31 Kinetic 7540 | . 530 33 434 734 1318 301 4190 Thermal 129 | . . . . . . . 129 Explosive . | . . . . . . . . Electromagnetic 73 | . . . . . . . 73 Impact . | . . . . . . . . Slashing 185 | . . . . . 185 . . Piercing . | . . . . . . . . Highest Corruption 5 | . . . . . . 1 5 Average Corruption 2 | . . . . . . 1 2 Corruption Purged . | . . . . . . . . Corruption Blocked . | . . . . . . . . Effects 37 | . . . . . . 1 36 Message Errors 10 | . . . . . . . 10 Matter Fused 12 | . . . . . . . 12 Heat Flow Errors 2 | . . . . . . . 2 Energy Discharges 3 | . . . . . . . 3 Parts Rejected 1 | . . . . . . . 1 Data Loss (minor) 1 | . . . . . . . 1 Misfires 5 | . . . . . . . 5 Alerts 2 | . . . . . . 1 1 Weapon Failures 1 | . . . . . . . 1 Overload Shots . | . . . . . . . . Overflow Damage 31 | . . . . . 6 . 25 Projectiles 25 | . . . . . . . 25 Explosions . | . . . . . . . . Melee 6 | . . . . . 6 . . Knockbacks 55 | . . . 4 14 31 2 4 Impact . | . . . . . . . . Kinetic 43 | . . . 4 11 23 2 3 Secondary 12 | . . . . 3 8 . 1 Self-Inflicted Damage 35 | . . . . . 35 . . Shots 1 | . . . . . 1 . . Rammed 26 | . 7 . 1 4 6 1 7 Targets Rammed 26 | . 7 . 1 4 6 1 7 Kicked . | . . . . . . . . Crushed . | . . . . . . . . Highest Temperature 406 | . 28 4 72 111 205 69 406 Average Temperature 58 | . 8 3 22 54 75 26 73 Received Heat Transfer 2456 | . 300 . 24 106 905 18 1103 Effects 3 | . . . . . . . 3 Shutdowns 2 | . . . . . . . 2 Matter Decay 1 | . . . . . . . 1 Siege Activations . | . . . . . . . . Martial Activations . | . . . . . . . . Shielding Activations . | . . . . . . . . Robots Disrupted . | . . . . . . . . Combat Hostiles . | . . . . . . . . Robots Corrupted . | . . . . . . . . Combat Hostiles . | . . . . . . . . Parts Fried . | . . . . . . . . Impact Corruptions . | . . . . . . . . Robots Melted . | . . . . . . . . Combat Hostiles . | . . . . . . . . Parts Melted . | . . . . . . . . Heat Transferred 324 | . . . . . . . 324 Parts Sabotaged . | . . . . . . . . Parts Stolen . | . . . . . . . . Parts Stripped . | . . . . . . . . Power Chain Reactions . | . . . . . . . . Alert | -11 -10 -10 -9 -9 -8 -7 -6 ------- Run | Yrd Mat Min Mat Sto Mat Fac Fac Maximum Alert Level 1 | . . . 1 1 . . 1 Low Security (%) 94 | 100 100 100 67 72 100 100 98 Level 1 5 | . . . 32 27 . . 1 Level 2 . | . . . . . . . . Level 3 . | . . . . . . . . Level 4 . | . . . . . . . . Level 5 . | . . . . . . . . High Security . | . . . . . . . . Max Security . | . . . . . . . . Peak Influence 373 | . 115 64 303 373 152 68 207 Initial 126 | . . 18 . 118 126 68 . Average 70 | . 40 16 117 178 106 12 57 Influence Increases 2816 | . 283 86 481 643 430 70 823 Destroy 0b10 Robot/C 1720 | . 180 40 320 360 260 60 500 Destroy 0b10 Robot/NC 105 | . 10 . 25 25 5 . 40 Destroy Leader 472 | . 44 10 84 104 60 10 160 Allied During Kill 172 | . . 6 36 130 . . . Successful Hack 13 | . 4 . . 9 . . . Disable Machine 135 | . . . 15 . 30 . 90 Destroy Structure 19 | . . . 1 . . . 18 Lose Combat Pursuer 180 | . 45 30 . 15 75 . 15 Influence Decreases 2816 | . 234 135 198 627 577 222 823 Entered New Map 453 | . . 31 . 165 173 84 . Time Decay 1662 | . 234 104 128 342 254 138 462 Lost Part 561 | . . . 30 40 130 . 361 Lost Ally 140 | . . . 40 80 20 . . Squads Dispatched 24 | . . . 2 5 5 1 11 Investigation 7 | . . . 1 3 3 . . Extermination 6 | . . . . . . 1 5 Reinforcement 7 | . . . 1 1 2 . 3 Assault . | . . . . . . . . Garrison 4 | . . . . 1 . . 3 Intercept . | . . . . . . . . Searches Triggered . | . . . . . . . . Construction Impeded 2 | . . . . . 1 . 1 Haulers Reinforced . | . . . . . . . . Active Scanning Responses . | . . . . . . . . Cargo Convoy Interrupts . | . . . . . . . . Stealth | -11 -10 -10 -9 -9 -8 -7 -6 --------- Run | Yrd Mat Min Mat Sto Mat Fac Fac Distress Signals 5 | . 2 . . . 1 . 2 Communications Jammed . | . . . . . . . . Distress Signals . | . . . . . . . . Times Spotted 140 | . 17 4 19 26 27 7 40 Peak Tracking Total 8 | . 4 3 6 4 8 2 6 Tactical Retreats 10 | . 2 1 . 1 5 . 1 Traps | -11 -10 -10 -9 -9 -8 -7 -6 ------- Run | Yrd Mat Min Mat Sto Mat Fac Fac Traps Triggered 3 | . . . 1 1 1 . . Indirectly . | . . . . . . . . Trap Hack Attempts . | . . . . . . . . Triggered . | . . . . . . . . Disarmed . | . . . . . . . . Reprogrammed . | . . . . . . . . Reused . | . . . . . . . . Traps Extracted . | . . . . . . . . Installed . | . . . . . . . . Triggered . | . . . . . . . . Machines | -11 -10 -10 -9 -9 -8 -7 -6 ---------- Run | Yrd Mat Min Mat Sto Mat Fac Fac Machines Disabled 9 | . . . 1 . 2 . 6 Max in Single Turn 2 | . . . . . 2 . 2 Machines Repaired . | . . . . . . . . Machines Dismantled . | . . . . . . . . Machines Sabotaged . | . . . . . . . . Overloaded Fab Kills . | . . . . . . . . Hacking | -11 -10 -10 -9 -9 -8 -7 -6 --------- Run | Yrd Mat Min Mat Sto Mat Fac Fac Machines Accessed 11 | . 3 . . 5 2 . 1 Terminals 10 | . 2 . . 5 2 . 1 Fabricators . | . . . . . . . . Repair Stations . | . . . . . . . . Recycling Units 1 | . 1 . . . . . . Scanalyzers . | . . . . . . . . Garrison Access . | . . . . . . . . Total Hacks 25 | . 5 . . 11 7 . 2 Successful 10 | . 3 . . 5 1 . 1 Failed 15 | . 2 . . 6 6 . 1 Catastrophic 6 | . . . . 3 3 . . Database Lockouts . | . . . . . . . . Manual 8 | . . . . 2 6 . . Terminals 24 | . 4 . . 11 7 . 2 Fabricators . | . . . . . . . . Repair Stations . | . . . . . . . . Recycling Units 1 | . 1 . . . . . . Scanalyzers . | . . . . . . . . Garrison Access . | . . . . . . . . Terminal Hacks 9 | . 2 . . 5 1 . 1 Record 2 | . . . . 1 . . 1 Open Door 1 | . . . . 1 . . . Branch Access Points 1 | . 1 . . . . . . Terminal Index 1 | . . . . 1 . . . Locate Traps 3 | . 1 . . 1 1 . . Zone Layout 1 | . . . . 1 . . . Fabricator Hacks . | . . . . . . . . Repair Station Hacks . | . . . . . . . . Recycling Unit Hacks 1 | . 1 . . . . . . Report Inventory 1 | . 1 . . . . . . Scanalyzer . | . . . . . . . . Garrison Access Hacks . | . . . . . . . . Unauthorized Hacks . | . . . . . . . . Terminals . | . . . . . . . . Fabricators . | . . . . . . . . Repair Stations . | . . . . . . . . Recycling Units . | . . . . . . . . Scanalyzers . | . . . . . . . . Garrison Access . | . . . . . . . . Data Cores Recovered . | . . . . . . . . Used . | . . . . . . . . Hacking Detections 8 | . 1 . . 4 2 . 1 Full Trace Events 4 | . . . . 2 2 . . Feedback Events . | . . . . . . . . Feedback Blocked . | . . . . . . . . Robot Schematics Acquired . | . . . . . . . . Robots Built . | . . . . . . . . Authchips . | . . . . . . . . Time . | . . . . . . . . Total Robot Build Rating . | . . . . . . . . Part Schematics Acquired . | . . . . . . . . Parts Built . | . . . . . . . . Authchips . | . . . . . . . . Time . | . . . . . . . . Total Part Build Rating . | . . . . . . . . Parts Repaired . | . . . . . . . . Time . | . . . . . . . . Parts Recycled . | . . . . . . . . Recycled Matter . | . . . . . . . . Retrieved Matter . | . . . . . . . . Retrieved Components . | . . . . . . . . Parts Scanalyzed . | . . . . . . . . Part Schematics Acquired . | . . . . . . . . Parts Damaged . | . . . . . . . . Bothacking | -11 -10 -10 -9 -9 -8 -7 -6 ------------ Run | Yrd Mat Min Mat Sto Mat Fac Fac Used RIF Installer . | . . . . . . . . Robots Hacked . | . . . . . . . . Non-combat . | . . . . . . . . Combat . | . . . . . . . . Robot Hacks Applied . | . . . . . . . . Relay Couplers Released . | . . . . . . . . Fabnet Peak Effective % . | . . . . . . . . Robots Rewired . | . . . . . . . . Allies Hacked . | . . . . . . . . Hacks Repelled . | . . . . . . . . Allies | -11 -10 -10 -9 -9 -8 -7 -6 -------- Run | Yrd Mat Min Mat Sto Mat Fac Fac Total Allies 13 | . . 3 . 10 . . . Largest Group 10 | . . 3 3 10 1 . . Highest-Rated Group 88 | . . 81 81 88 16 . . Highest-Rated Ally 31 | . . 31 31 16 16 . . Total Orders . | . . . . . . . . Ally Attacks 89 | . . 1 35 52 1 . . Total Damage 868 | . . 22 424 406 16 . . Kills 19 | . . 1 11 7 . . . Allies Corrupted . | . . . . . . . . Allies Melted . | . . . . . . . . Intel | -11 -10 -10 -9 -9 -8 -7 -6 ------- Run | Yrd Mat Min Mat Sto Mat Fac Fac Active Infowar (turns) 2795 | . . . 380 762 233 . 1420 Structural 1375 | . . . 380 762 233 . . Traps 1420 | . . . . . . . 1420 Robot Analysis Total . | . . . . . . . . Derelict Logs Recovered . | . . . . . . . . Drone Launches . | . . . . . . . . Drone Recoveries . | . . . . . . . . Exploration | -11 -10 -10 -9 -9 -8 -7 -6 ------------- Run | Yrd Mat Min Mat Sto Mat Fac Fac Turns Passed 6289 | 74 924 308 395 762 558 654 2614 Spaces Moved 1980 | 43 333 125 129 242 177 251 680 Core 84 | 8 . . . . . . 76 Treads 1896 | 35 333 125 129 242 177 251 604 Legs . | . . . . . . . . Wheels . | . . . . . . . . Hover . | . . . . . . . . Flight . | . . . . . . . . Fastest Speed 50 | 50 160 240 240 240 160 160 160 Average Speed 251 | 144 227 240 240 240 161 233 307 Slowest Speed 1250 | 160 240 240 320 240 240 240 1250 Overloaded Moves . | . . . . . . . . Propulsion Burnouts . | . . . . . . . . Robots Hopped . | . . . . . . . . Potential Cave-ins . | . . . . . . . . Cave-ins Triggered . | . . . . . . . . Exploration Rate (%) 27 | 3 63 32 23 51 18 6 23 Regions Visited 7 Branch Regions 2 Pre-discovered Areas . | . . . . . . . . Known Exits Taken 1 | . 1 . . . . . . Unknown Exits Taken 6 | 1 . 1 1 1 1 1 . Scrap Searched . | . . . . . . . . Spaces Dug . | . . . . . . . . Terrain Destroyed 22 | . . . . . . . 22 Melee . | . . . . . . . . Projectile 4 | . . . . . . . 4 AOE 18 | . . . . . . . 18 Terrain Rammed . | . . . . . . . . Walls Destroyed . | . . . . . . . . Machines Disabled . | . . . . . . . . Actions | -11 -10 -10 -9 -9 -8 -7 -6 --------- Run | Yrd Mat Min Mat Sto Mat Fac Fac Total 2676 | 55 421 129 175 343 322 300 931 Wait 175 | . 27 . 3 38 44 22 41 Move 1973 | 42 332 124 128 241 176 250 680 Hop . | . . . . . . . . Pick Up 83 | 7 13 2 9 10 9 10 23 Fast Attach . | . . . . . . . . Attach 66 | 6 2 . 5 4 13 4 32 Detach 1 | . 1 . . . . . . Swap 19 | . . . 1 3 5 6 4 Drop 14 | . . . 1 4 2 . 7 Fire 313 | . 39 3 27 39 61 7 137 Melee 6 | . . . . . 6 . . Ram 1 | . . . . . . . 1 Kick . | . . . . . . . . Crush 25 | . 7 . 1 4 6 1 6 Escape Stasis . | . . . . . . . . Rewire . | . . . . . . . . Trap . | . . . . . . . . Miscellaneous . | . . . . . . . . Route ------- -11/Scrapyard -10/Materials (discovered 3 exits: [*Mat] / *Min x2) -10/Mines -9/Materials (discovered 2 exits: *Mat / *Sto) -9/Storage -8/Materials -7/Factory -6/Factory History --------- Turn | Location | Event 7 | -11/Scrapyard | Discovered new exit (range 15) 75 | -11/Scrapyard | Entered Materials 312 | -10/Materials | Build established: Mutant 489 | -10/Materials | Discovered new exit (range 14) 828 | -10/Materials | Discovered new exit (range 14) 833 | -10/Materials | Identified exit to Mines 891 | -10/Materials | Discovered new exit (range 9) 999 | -10/Materials | Entered Mines 1292 | -10/Mines | Discovered new exit (range 7) 1300 | -10/Mines | Received a Mining Laser from a helpful Derelict 1307 | -10/Mines | Entered Materials 1307 | -9/Materials | Accompanied by 3 allies 1307 | -9/Materials | Evolved 2 slots: Power x1, Utility x1 1312 | -9/Materials | Led the pair of lost Derelicts to an unsafe place 1585 | -9/Materials | Discovered new exit (range 16) 1700 | -9/Materials | Discovered new exit (range 15) 1702 | -9/Materials | Entered Storage 2136 | -9/Storage | Assisted by bots powering up and referring to "LRC-V3" 2409 | -9/Storage | Garrison activated, responded to threat 2433 | -9/Storage | Discovered new exit (range 9) 2464 | -9/Storage | Lost 7 allies 2464 | -9/Storage | Entered Materials 2464 | -8/Materials | Accompanied by 1 ally 2464 | -8/Materials | Evolved 2 slots: Propulsion x2 2731 | -8/Materials | Build established: Scavenger-Mutant 2764 | -8/Materials | Lost 4 parts (1p2u1w) 2891 | -8/Materials | Discovered new exit (range 8) 2933 | -8/Materials | Lost 3 parts (1p2n) 2990 | -8/Materials | Lost 3 parts (1p2n) 3022 | -8/Materials | Entered Factory 3022 | -7/Factory | Evolved 2 slots: Utility x1, Weapon x1 3321 | -7/Factory | Build established: Scavenger-Tank 3480 | -7/Factory | Discovered new exit (range 8) 3676 | -7/Factory | Entered another Factory area 3676 | -6/Factory | Evolved 2 slots: Utility x2 3927 | -6/Factory | Build established: Tank 4661 | -6/Factory | Lost 6 parts (2n1u3w) 5158 | -6/Factory | Core integrity fell below 50% 5169 | -6/Factory | Lost 12 parts (4p2n2u4w) 5402 | -6/Factory | Build established: Mutant 5915 | -6/Factory | Garrison activated, responded to threat 6047 | -6/Factory | Core integrity fell below 20% 6067 | -6/Factory | Lost 7 parts (2p3u2w) 6290 | -6/Factory | Destroyed by H-66 Slayer with Gauss Rifle Last Messages --------------- 06276_ Penetrated by Slug. 06279_ K-01 Serf collects debris. 06279_ Lgt. Treads destroyed. 06280_ Penetrated by Slug. 06280_ Gatling Laser destroyed. 06280_ Penetrated by Slug. 06281_ Slug penetrates Wall. 06283_ Penetrated by Slug. 06284_ K-01 Serf cleans the Pressure Siphon. 06284_ Plasma Cutter destroyed. 06284_ Penetrated by Slug. 06284_ Critical hit (Burn: +37). 06286_ Lgt. Treads destroyed. 06286_ Penetrated by Slug. 06287_ Lgt. Fission Core destroyed. 06287_ Slug penetrates Wall. 06287_ Deuterium Engine destroyed. 06289_ K-01 Serf cleans the Pressure Siphon. 06289_ Slug penetrates G-50 Soldier. 06290_ Penetrated by Slug. Map ----- +----------------------------------------------------+ | ?????????????????????????????????????????????????? | | ?????????????????????????????????????????????????? | | ?????????????????????????????????????????????????? | | ?????????????????????????????????????????????????? | | ?????????????????????????????????????????????????? | | ?????????????????????????????????????????????????? | | ?????????????????????????????????????????????????? | | ?????????????????????????????????????????????????? | | ???????????????????????? ????????????????????????? | | ## ????????????????????? ????????????????????????? | | # ??? ""? ???? ?""""" """?????????????????????? | | # """ """ ?# """""" """"????????????????????? | | # """ """ ?# ?????????????????????? | | # ??# ?????????????????????? | | # """ """ ?# ! ?????????????????????? | | # """ """ ??# ??????????????????????? | | # """ ""????# ??????????????????????? | | #? ??????# #??########+#??????????? | | ####+######### #??# ??????????? | | #??# ???????????? | | % #??# ???????????? | | % **!#??? ????????????? | | ""% **!#??? ! ????????????? | | """ ! #???? ?????????????? | | """ #???? ?????????????? | | @#????? ??????????????? | | ########### #????? ??????????????? | | # # gg#######/####???????????? | | # # g #???????????? | | # + h #???????????? | | # # h ^ #???????????? | | # + k #???????????? | | # # #???????????? | | # # """ """ """ """ """ #???????????? | | # # """ """ """ """ """ #???????????? | | # # """ """ """ """ """ #???????????? | | # # """ """ """ """ """ ##########??? | | ?# # k #??? | | ?# !! # """ """ """ """ """ #??? | | ?# ! # """ """ """ """ """ #??? | | ?/ + """ """ """ """ """ #### | | ?? # """ ""% """ """ """ # | | ???? # #! | | ????######## # | | ???????????#############+############## # | | ??????????????????# ## # # | | ??????????????????# """ "" ## """ # # | | ??????????????????# """ """ ## """ # # | | ??????????????????# """ R" ## """ # + | | ??????????????????# """ ## # # | +----------------------------------------------------+ Best States ------------- Heat Dissipation 56 Energy Generation 38 Energy Capacity 400 Matter Stores 350 Matter Capacity 550 Sight Range 16 Terrain Scan Density 10 Additional Mass Support 9 Armor Coverage 150 Core Shielding 30 Evasion (%) 40 Recoil Reduction 4 Offensive Hacking 10 Item Schematics ----------------- None Robot Schematics ------------------ None Fabricated ------------ Nothing Repaired ---------- Nothing Alien Tech Used ----------------- None Achievements -------------- Party Time Challenges ------------ None Game ------ Seed IonicTechCompanion Manual? 0 Play Time 00:50:56 Cumulative 24.1 hours Start 2025.08.01 @ 16:36:30 End 2025.08.01 @ 17:30:15 Sessions 1 Manual Loads 0 Difficulty Rogue Special Mode None Game No. 45 Rogue 45 Adventurer 0 Explorer 0 Win Type - Total 0 Types 0/0/0/0/0/0/0/0/0/0 Lore% 18 Gallery% 18 Achievement% 19 Wizard Run 0 Options --------- Layout 1 ASCII 0 Keyboard 0 Movement Numpad Keybinds 0 Fullscreen 1 Font 32/SmallcapsGlow Map View 50x35 Zoom Use 0% Tactical HUD 1 Map Filters NONE Filters NONE Steam 1 RUN: 2758c592-33c0-4b16-a111-ccc29fb067cf